[Event "Titled Tuesday Blitz November 07 Early 2023"]
[White "Pujari, Rucha"]
[Black "Preotu, Razvan"]
[WhiteFideId "5024528"]
[BlackFideId "2613280"]
[WhiteElo "2501"]
[BlackElo "2706"]
[Result "1/2-1/2"]
[Round "11"]
[TimeControl "180+1"]
[Date "2023.11.07"]
[WhiteClock "0:00:04"]
[BlackClock "0:00:05"]
[Board "69"]

1. d4 {[%clk 0:03:00]}  Nf6 {[%clk 0:02:58]} 2. c4 {[%clk 0:03:01]}  c5 {[%clk 0:02:57]} 3. d5 {[%clk 0:03:01]}  e6 {[%clk 0:02:58]} 4. Nc3 {[%clk 0:03:00]}  exd5 {[%clk 0:02:59]} 5. cxd5 {[%clk 0:03:01]}  d6 {[%clk 0:02:59]} 6. Nf3 {[%clk 0:03:00]}  g6 {[%clk 0:03:00]} 7. g3 {[%clk 0:03:00]}  Bg7 {[%clk 0:03:00]} 8. Bg2 {[%clk 0:03:01]}  O-O {[%clk 0:03:00]} 9. O-O {[%clk 0:03:01]}  a6 {[%clk 0:03:00]} 10. a4 {[%clk 0:03:02]}  Re8 {[%clk 0:03:00]} 11. Bf4 {[%clk 0:03:02]}  Ne4 {[%clk 0:03:01]} 12. Nxe4 {[%clk 0:02:59]}  Rxe4 {[%clk 0:03:02]} 13. Nd2 {[%clk 0:02:59]}  Rxf4 {[%clk 0:03:01]} 14. gxf4 {[%clk 0:02:59]}  Bxb2 {[%clk 0:03:01]} 15. Nc4 {[%clk 0:02:49]}  Bxa1 {[%clk 0:02:10]} 16. Qxa1 {[%clk 0:02:50]}  Bg4 {[%clk 0:02:05]} 17. Re1 {[%clk 0:02:38]}  Qe7 {[%clk 0:01:29]} 18. e4 {[%clk 0:02:36]}  Nd7 {[%clk 0:01:28]} 19. h3 {[%clk 0:02:24]}  Bh5 {[%clk 0:01:26]} 20. e5 {[%clk 0:02:23]}  dxe5 {[%clk 0:01:20]} 21. fxe5 {[%clk 0:02:20]}  Rd8 {[%clk 0:00:53]} 22. e6 {[%clk 0:02:16]}  fxe6 {[%clk 0:00:54]} 23. Rxe6 {[%clk 0:02:07]}  Qg7 {[%clk 0:00:46]} 24. Qe1 {[%clk 0:02:01]}  Nf8 {[%clk 0:00:35]} 25. Re7 {[%clk 0:01:42]}  Qd4 {[%clk 0:00:35]} 26. Qe5 {[%clk 0:01:18]}  b5 {[%clk 0:00:23]} 27. axb5 {[%clk 0:01:03]}  axb5 {[%clk 0:00:23]} 28. d6 {[%clk 0:00:49]}  Qxe5 {[%clk 0:00:20]} 29. Nxe5 {[%clk 0:00:46]}  Rxd6 {[%clk 0:00:20]} 30. Rb7 {[%clk 0:00:36]}  b4 {[%clk 0:00:20]} 31. Bf1 {[%clk 0:00:32]}  g5 {[%clk 0:00:13]} 32. Bc4+ {[%clk 0:00:31]}  Kh8 {[%clk 0:00:14]} 33. Rc7 {[%clk 0:00:25]}  Rd1+ {[%clk 0:00:14]} 34. Kg2 {[%clk 0:00:22]}  Rc1 {[%clk 0:00:11]} 35. Rxc5 {[%clk 0:00:19]}  Be2 {[%clk 0:00:05]} 36. Nf7+ {[%clk 0:00:17]}  Kg7 {[%clk 0:00:05]} 37. Rxg5+ {[%clk 0:00:17]}  Kf6 {[%clk 0:00:05]} 38. Bxe2 {[%clk 0:00:16]}  Kxf7 {[%clk 0:00:05]} 39. Rb5 {[%clk 0:00:15]}  Rb1 {[%clk 0:00:04]} 40. Bd3 {[%clk 0:00:13]}  Rb2 {[%clk 0:00:04]} 41. Kg3 {[%clk 0:00:12]}  Kf6 {[%clk 0:00:03]} 42. h4 {[%clk 0:00:11]}  h6 {[%clk 0:00:03]} 43. Rb6+ {[%clk 0:00:10]}  Ke5 {[%clk 0:00:02]} 44. Rxh6 {[%clk 0:00:10]}  Rb3 {[%clk 0:00:02]} 45. Rh5+ {[%clk 0:00:07]}  Kd4 {[%clk 0:00:02]} 46. Rf5 {[%clk 0:00:07]}  Rxd3+ {[%clk 0:00:03]} 47. Kg4 {[%clk 0:00:06]}  Ne6 {[%clk 0:00:03]} 48. Rf6 {[%clk 0:00:06]}  Nc5 {[%clk 0:00:03]} 49. h5 {[%clk 0:00:05]}  Kc4 {[%clk 0:00:03]} 50. h6 {[%clk 0:00:06]}  Rd7 {[%clk 0:00:03]} 51. Rg6 {[%clk 0:00:03]}  Rb7 {[%clk 0:00:03]} 52. Rg7 {[%clk 0:00:03]}  Rb8 {[%clk 0:00:04]} 53. h7 {[%clk 0:00:03]}  Rh8 {[%clk 0:00:04]} 54. Kh5 {[%clk 0:00:01]}  b3 {[%clk 0:00:04]} 55. Rg1 {[%clk 0:00:01]}  b2 {[%clk 0:00:04]} 56. Kg6 {[%clk 0:00:02]}  Ne4 {[%clk 0:00:03]} 57. Kg7 {[%clk 0:00:02]}  Rxh7+ {[%clk 0:00:03]} 58. Kxh7 {[%clk 0:00:03]}  Nxf2 {[%clk 0:00:03]} 59. Rb1 {[%clk 0:00:03]}  Kc3 {[%clk 0:00:04]} 60. Rxb2 {[%clk 0:00:04]}  Kxb2 {[%clk 0:00:05]} 1/2-1/2


[Site "https://www.chess.com"]

[Event "Titled Tuesday Blitz November 07 Early 2023"]
[White "Lehtosaari, Mauri"]
[Black "Ovetchkin, Roman"]
[WhiteFideId "501999"]
[BlackFideId "4119991"]
[WhiteElo "2500"]
[BlackElo "2669"]
[Result "0-1"]
[Round "11"]
[TimeControl "180+1"]
[Date "2023.11.07"]
[WhiteClock "0:00:36"]
[BlackClock "0:01:34"]
[Board "70"]

1. d4 {[%clk 0:03:00]}  Nf6 {[%clk 0:02:58]} 2. Nf3 {[%clk 0:03:01]}  g6 {[%clk 0:02:56]} 3. Bg5 {[%clk 0:02:56]}  Bg7 {[%clk 0:02:56]} 4. Nbd2 {[%clk 0:02:55]}  O-O {[%clk 0:02:55]} 5. e3 {[%clk 0:02:54]}  b6 {[%clk 0:02:54]} 6. Bc4 {[%clk 0:02:54]}  Bb7 {[%clk 0:02:54]} 7. O-O {[%clk 0:02:54]}  c5 {[%clk 0:02:53]} 8. c3 {[%clk 0:02:54]}  d5 {[%clk 0:02:46]} 9. Bb5 {[%clk 0:02:50]}  Ne4 {[%clk 0:02:41]} 10. Bf4 {[%clk 0:02:43]}  Nd6 {[%clk 0:02:38]} 11. Bd3 {[%clk 0:02:32]}  Nd7 {[%clk 0:02:38]} 12. a4 {[%clk 0:02:29]}  a6 {[%clk 0:02:35]} 13. h3 {[%clk 0:02:29]}  Re8 {[%clk 0:02:30]} 14. Bxd6 {[%clk 0:02:25]}  exd6 {[%clk 0:02:30]} 15. Re1 {[%clk 0:02:22]}  c4 {[%clk 0:02:19]} 16. Bf1 {[%clk 0:02:11]}  Nf6 {[%clk 0:02:13]} 17. g3 {[%clk 0:02:11]}  Qd7 {[%clk 0:02:11]} 18. Bg2 {[%clk 0:02:09]}  Bc6 {[%clk 0:02:10]} 19. Qc2 {[%clk 0:02:02]}  b5 {[%clk 0:02:09]} 20. axb5 {[%clk 0:01:56]}  axb5 {[%clk 0:02:09]} 21. b4 {[%clk 0:01:47]}  Ra7 {[%clk 0:01:54]} 22. Rxa7 {[%clk 0:01:33]}  Qxa7 {[%clk 0:01:53]} 23. Nh2 {[%clk 0:01:18]}  h5 {[%clk 0:01:50]} 24. e4 {[%clk 0:01:10]}  dxe4 {[%clk 0:01:49]} 25. Nxe4 {[%clk 0:01:00]}  Bxe4 {[%clk 0:01:48]} 26. Rxe4 {[%clk 0:00:53]}  Nxe4 {[%clk 0:01:48]} 27. Bxe4 {[%clk 0:00:53]}  Qa1+ {[%clk 0:01:36]} 28. Kg2 {[%clk 0:00:50]}  Qe1 {[%clk 0:01:35]} 29. Bd5 {[%clk 0:00:36]}  Re2 {[%clk 0:01:34]} 0-1


[Site "https://www.chess.com"]

[Event "Titled Tuesday Blitz November 07 Early 2023"]
[White "Tasev, Dejan"]
[Black "Devaev, Alexander"]
[WhiteFideId "936618"]
[BlackFideId "4169395"]
[WhiteElo "2599"]
[BlackElo "2476"]
[Result "1/2-1/2"]
[Round "11"]
[TimeControl "180+1"]
[Date "2023.11.07"]
[WhiteClock "0:00:35"]
[BlackClock "0:00:09"]
[Board "73"]

1. e4 {[%clk 0:03:00]}  c6 {[%clk 0:02:59]} 2. d4 {[%clk 0:03:00]}  d5 {[%clk 0:03:00]} 3. Nc3 {[%clk 0:03:01]}  dxe4 {[%clk 0:03:00]} 4. Nxe4 {[%clk 0:03:01]}  Bf5 {[%clk 0:03:01]} 5. Ng3 {[%clk 0:03:02]}  Bg6 {[%clk 0:03:01]} 6. Nf3 {[%clk 0:03:01]}  Nd7 {[%clk 0:03:01]} 7. Bc4 {[%clk 0:03:02]}  e6 {[%clk 0:03:01]} 8. Bb3 {[%clk 0:03:01]}  Bd6 {[%clk 0:02:59]} 9. c3 {[%clk 0:03:01]}  Ngf6 {[%clk 0:03:00]} 10. Qe2 {[%clk 0:03:01]}  Qc7 {[%clk 0:03:00]} 11. O-O {[%clk 0:03:00]}  O-O {[%clk 0:03:00]} 12. Nh4 {[%clk 0:03:00]}  Rfe8 {[%clk 0:02:55]} 13. Nxg6 {[%clk 0:03:00]}  hxg6 {[%clk 0:02:56]} 14. Qf3 {[%clk 0:02:59]}  c5 {[%clk 0:02:46]} 15. dxc5 {[%clk 0:02:57]}  Nxc5 {[%clk 0:02:41]} 16. Bc2 {[%clk 0:02:57]}  Rad8 {[%clk 0:02:41]} 17. Bg5 {[%clk 0:02:52]}  Be7 {[%clk 0:02:36]} 18. Rad1 {[%clk 0:02:48]}  Nd5 {[%clk 0:02:35]} 19. Bc1 {[%clk 0:02:47]}  Nf6 {[%clk 0:02:23]} 20. Rxd8 {[%clk 0:02:40]}  Rxd8 {[%clk 0:02:23]} 21. Rd1 {[%clk 0:02:40]}  Rxd1+ {[%clk 0:02:22]} 22. Qxd1 {[%clk 0:02:40]}  a5 {[%clk 0:02:16]} 23. Nf1 {[%clk 0:02:36]}  Bd6 {[%clk 0:02:15]} 24. g3 {[%clk 0:02:35]}  Nd5 {[%clk 0:02:03]} 25. Ne3 {[%clk 0:02:32]}  Nxe3 {[%clk 0:02:02]} 26. Bxe3 {[%clk 0:02:32]}  b6 {[%clk 0:02:03]} 27. Qf3 {[%clk 0:02:30]}  Qc8 {[%clk 0:01:54]} 28. h4 {[%clk 0:02:29]}  Nd7 {[%clk 0:01:48]} 29. h5 {[%clk 0:02:25]}  gxh5 {[%clk 0:01:47]} 30. Qxh5 {[%clk 0:02:20]}  Nf6 {[%clk 0:01:45]} 31. Qf3 {[%clk 0:02:19]}  Bc5 {[%clk 0:01:39]} 32. Bg5 {[%clk 0:02:13]}  Be7 {[%clk 0:01:40]} 33. Bf4 {[%clk 0:02:08]}  Nd5 {[%clk 0:01:34]} 34. Bd2 {[%clk 0:01:59]}  Bc5 {[%clk 0:01:31]} 35. a4 {[%clk 0:01:55]}  Nf6 {[%clk 0:01:22]} 36. Qd3 {[%clk 0:01:49]}  Qc7 {[%clk 0:01:15]} 37. Bf4 {[%clk 0:01:45]}  e5 {[%clk 0:01:04]} 38. Be3 {[%clk 0:01:35]}  Bxe3 {[%clk 0:00:57]} 39. Qxe3 {[%clk 0:01:34]}  g6 {[%clk 0:00:56]} 40. Bb3 {[%clk 0:01:31]}  Kg7 {[%clk 0:00:56]} 41. Qf3 {[%clk 0:01:28]}  e4 {[%clk 0:00:44]} 42. Qe3 {[%clk 0:01:28]}  Qd6 {[%clk 0:00:42]} 43. Kg2 {[%clk 0:01:23]}  Qc6 {[%clk 0:00:38]} 44. Kg1 {[%clk 0:01:16]}  Qd6 {[%clk 0:00:36]} 45. Kf1 {[%clk 0:01:13]}  Qc6 {[%clk 0:00:34]} 46. Qd4 {[%clk 0:01:12]}  Kf8 {[%clk 0:00:13]} 47. Ke2 {[%clk 0:01:09]}  Ke7 {[%clk 0:00:13]} 48. Qe5+ {[%clk 0:01:03]}  Kf8 {[%clk 0:00:13]} 49. Qb8+ {[%clk 0:01:00]}  Kg7 {[%clk 0:00:13]} 50. Qa7 {[%clk 0:01:00]}  Nd7 {[%clk 0:00:14]} 51. Ke1 {[%clk 0:00:54]}  Ne5 {[%clk 0:00:13]} 52. Qe7 {[%clk 0:00:51]}  Qc5 {[%clk 0:00:07]} 53. Qxc5 {[%clk 0:00:50]}  bxc5 {[%clk 0:00:07]} 54. Bc2 {[%clk 0:00:47]}  f5 {[%clk 0:00:07]} 55. Kd2 {[%clk 0:00:46]}  Kf6 {[%clk 0:00:06]} 56. b3 {[%clk 0:00:43]}  Nc6 {[%clk 0:00:05]} 57. Bd1 {[%clk 0:00:42]}  Ke5 {[%clk 0:00:05]} 58. Be2 {[%clk 0:00:42]}  g5 {[%clk 0:00:05]} 59. Bb5 {[%clk 0:00:42]}  Ne7 {[%clk 0:00:06]} 60. Bc4 {[%clk 0:00:41]}  f4 {[%clk 0:00:06]} 61. gxf4+ {[%clk 0:00:42]}  gxf4 {[%clk 0:00:07]} 62. Ke2 {[%clk 0:00:40]}  Nc6 {[%clk 0:00:07]} 63. Bb5 {[%clk 0:00:40]}  Ne7 {[%clk 0:00:08]} 64. Bc4 {[%clk 0:00:40]}  Nc6 {[%clk 0:00:08]} 65. Bb5 {[%clk 0:00:35]}  Ne7 {[%clk 0:00:09]} 66. Bc4 {[%clk 0:00:35]} 1/2-1/2


[Site "https://www.chess.com"]

[Event "Titled Tuesday Blitz November 07 Early 2023"]
[White "Gontcharov, Vladislav"]
[Black "Filip, Andrei"]
[WhiteFideId "4123492"]
[BlackFideId "1249452"]
[WhiteElo "2557"]
[BlackElo "2458"]
[Result "1/2-1/2"]
[Round "11"]
[TimeControl "180+1"]
[Date "2023.11.07"]
[WhiteClock "0:00:18"]
[BlackClock "0:00:04"]
[Board "75"]

1. d4 {[%clk 0:03:00]}  Nf6 {[%clk 0:02:59]} 2. c4 {[%clk 0:03:00]}  e6 {[%clk 0:03:00]} 3. Nc3 {[%clk 0:03:00]}  d5 {[%clk 0:02:58]} 4. cxd5 {[%clk 0:02:58]}  exd5 {[%clk 0:02:58]} 5. Bg5 {[%clk 0:02:59]}  c6 {[%clk 0:02:59]} 6. e3 {[%clk 0:02:59]}  Be7 {[%clk 0:02:59]} 7. Bd3 {[%clk 0:02:58]}  O-O {[%clk 0:02:58]} 8. Nge2 {[%clk 0:02:58]}  Nbd7 {[%clk 0:02:57]} 9. O-O {[%clk 0:02:58]}  Re8 {[%clk 0:02:57]} 10. Qc2 {[%clk 0:02:52]}  Nf8 {[%clk 0:02:57]} 11. a3 {[%clk 0:02:24]}  Bg4 {[%clk 0:02:51]} 12. f3 {[%clk 0:02:10]}  Bh5 {[%clk 0:02:50]} 13. e4 {[%clk 0:02:09]}  dxe4 {[%clk 0:02:47]} 14. fxe4 {[%clk 0:02:09]}  Bxe2 {[%clk 0:02:38]} 15. Nxe2 {[%clk 0:01:49]}  Nxe4 {[%clk 0:02:35]} 16. Be3 {[%clk 0:01:49]}  Bg5 {[%clk 0:02:24]} 17. Bxe4 {[%clk 0:01:42]}  Bxe3+ {[%clk 0:02:24]} 18. Kh1 {[%clk 0:01:42]}  Qh4 {[%clk 0:02:05]} 19. Bf3 {[%clk 0:01:36]}  Ne6 {[%clk 0:01:59]} 20. Qb3 {[%clk 0:01:31]}  Nxd4 {[%clk 0:01:45]} 21. Nxd4 {[%clk 0:01:09]}  Bxd4 {[%clk 0:01:45]} 22. g3 {[%clk 0:01:09]}  Qh6 {[%clk 0:01:40]} 23. Qxb7 {[%clk 0:01:02]}  Rab8 {[%clk 0:01:22]} 24. Qxc6 {[%clk 0:01:02]}  Qxc6 {[%clk 0:01:19]} 25. Bxc6 {[%clk 0:01:01]}  Re2 {[%clk 0:00:57]} 26. Rad1 {[%clk 0:00:53]}  Bxb2 {[%clk 0:00:46]} 27. Bd5 {[%clk 0:00:52]}  Bf6 {[%clk 0:00:42]} 28. Rb1 {[%clk 0:00:47]}  Rxb1 {[%clk 0:00:18]} 29. Rxb1 {[%clk 0:00:47]}  g6 {[%clk 0:00:18]} 30. Rb7 {[%clk 0:00:41]}  Re7 {[%clk 0:00:16]} 31. Rb8+ {[%clk 0:00:42]}  Kg7 {[%clk 0:00:16]} 32. a4 {[%clk 0:00:42]}  Bd4 {[%clk 0:00:16]} 33. Kg2 {[%clk 0:00:40]}  g5 {[%clk 0:00:15]} 34. h3 {[%clk 0:00:39]}  h5 {[%clk 0:00:15]} 35. g4 {[%clk 0:00:40]}  h4 {[%clk 0:00:15]} 36. Bc4 {[%clk 0:00:35]}  Be5 {[%clk 0:00:12]} 37. Rb5 {[%clk 0:00:34]}  Bf4 {[%clk 0:00:12]} 38. Rf5 {[%clk 0:00:34]}  Rc7 {[%clk 0:00:12]} 39. Bd5 {[%clk 0:00:32]}  Rc2+ {[%clk 0:00:11]} 40. Kf1 {[%clk 0:00:32]}  f6 {[%clk 0:00:11]} 41. Bg2 {[%clk 0:00:32]}  Rc1+ {[%clk 0:00:11]} 42. Ke2 {[%clk 0:00:32]}  Rc2+ {[%clk 0:00:11]} 43. Kf1 {[%clk 0:00:32]}  Rc7 {[%clk 0:00:08]} 44. Ra5 {[%clk 0:00:31]}  Be3 {[%clk 0:00:07]} 45. Rb5 {[%clk 0:00:30]}  Rc2 {[%clk 0:00:04]} 46. Rb7+ {[%clk 0:00:28]}  Kf8 {[%clk 0:00:05]} 47. Bd5 {[%clk 0:00:27]}  Bb6 {[%clk 0:00:04]} 48. Rf7+ {[%clk 0:00:27]}  Ke8 {[%clk 0:00:04]} 49. Rxf6 {[%clk 0:00:27]}  Rc3 {[%clk 0:00:05]} 50. Bg2 {[%clk 0:00:26]}  Rc1+ {[%clk 0:00:05]} 51. Ke2 {[%clk 0:00:26]}  Rc2+ {[%clk 0:00:06]} 52. Kf1 {[%clk 0:00:26]}  Ke7 {[%clk 0:00:06]} 53. Rf5 {[%clk 0:00:25]}  Ke6 {[%clk 0:00:05]} 54. Bd5+ {[%clk 0:00:24]}  Kd6 {[%clk 0:00:05]} 55. Rxg5 {[%clk 0:00:24]}  Rf2+ {[%clk 0:00:05]} 56. Ke1 {[%clk 0:00:23]}  Rh2 {[%clk 0:00:05]} 57. Bb7 {[%clk 0:00:20]}  Rxh3 {[%clk 0:00:05]} 58. Rh5 {[%clk 0:00:21]}  Rh2 {[%clk 0:00:04]} 59. a5 {[%clk 0:00:20]}  Bd4 {[%clk 0:00:03]} 60. g5 {[%clk 0:00:20]}  Bc3+ {[%clk 0:00:03]} 61. Kf1 {[%clk 0:00:20]}  Bxa5 {[%clk 0:00:04]} 62. g6 {[%clk 0:00:20]}  Bc3 {[%clk 0:00:04]} 63. Rd5+ {[%clk 0:00:20]}  Ke6 {[%clk 0:00:04]} 64. Rh5 {[%clk 0:00:19]}  Rd2 {[%clk 0:00:03]} 65. Be4 {[%clk 0:00:18]}  Bg7 {[%clk 0:00:03]} 66. Rxh4 {[%clk 0:00:18]}  Kf6 {[%clk 0:00:04]} 67. Bg2 {[%clk 0:00:18]}  Kg5 {[%clk 0:00:04]} 68. Ra4 {[%clk 0:00:18]}  Kxg6 {[%clk 0:00:04]} 69. Ra6+ {[%clk 0:00:18]}  Kg5 {[%clk 0:00:03]} 70. Rxa7 {[%clk 0:00:18]}  Bd4 {[%clk 0:00:03]} 71. Ra4 {[%clk 0:00:18]}  Rf2+ {[%clk 0:00:03]} 72. Ke1 {[%clk 0:00:17]}  Rxg2 {[%clk 0:00:02]} 73. Rxd4 {[%clk 0:00:18]}  Rg4 {[%clk 0:00:03]} 74. Rxg4+ {[%clk 0:00:18]}  Kxg4 {[%clk 0:00:04]} 1/2-1/2


[Site "https://www.chess.com"]

[Event "Titled Tuesday Blitz November 07 Early 2023"]
[White "Gavrilov, Maxim"]
[Black "Shishkov, Andrei"]
[WhiteFideId "24271454"]
[BlackFideId "4500563"]
[WhiteElo "2553"]
[BlackElo "2457"]
[Result "0-1"]
[Round "11"]
[TimeControl "180+1"]
[Date "2023.11.07"]
[WhiteClock "0:00:00"]
[BlackClock "0:00:12"]
[Board "76"]

1. d4 {[%clk 0:03:00]}  Nf6 {[%clk 0:02:58]} 2. c4 {[%clk 0:03:00]}  e6 {[%clk 0:02:58]} 3. Nc3 {[%clk 0:03:00]}  Bb4 {[%clk 0:02:58]} 4. Nf3 {[%clk 0:03:00]}  b6 {[%clk 0:02:58]} 5. e3 {[%clk 0:02:59]}  Bb7 {[%clk 0:02:55]} 6. Bd3 {[%clk 0:02:59]}  c5 {[%clk 0:02:55]} 7. O-O {[%clk 0:02:55]}  O-O {[%clk 0:02:53]} 8. Bd2 {[%clk 0:02:49]}  Bxc3 {[%clk 0:02:41]} 9. Bxc3 {[%clk 0:02:49]}  Ne4 {[%clk 0:02:42]} 10. Be1 {[%clk 0:02:39]}  f5 {[%clk 0:02:38]} 11. Nd2 {[%clk 0:02:09]}  Qf6 {[%clk 0:02:35]} 12. Nxe4 {[%clk 0:02:03]}  fxe4 {[%clk 0:02:33]} 13. Be2 {[%clk 0:02:03]}  cxd4 {[%clk 0:02:29]} 14. Qxd4 {[%clk 0:02:00]}  Qxd4 {[%clk 0:02:27]} 15. exd4 {[%clk 0:02:01]}  Nc6 {[%clk 0:02:21]} 16. Bc3 {[%clk 0:02:00]}  d5 {[%clk 0:02:21]} 17. Rae1 {[%clk 0:01:40]}  Rad8 {[%clk 0:02:13]} 18. Bg4 {[%clk 0:01:35]}  Rf6 {[%clk 0:02:04]} 19. f3 {[%clk 0:01:34]}  dxc4 {[%clk 0:01:57]} 20. d5 {[%clk 0:01:27]}  exd5 {[%clk 0:01:53]} 21. Bxf6 {[%clk 0:01:24]}  gxf6 {[%clk 0:01:54]} 22. fxe4 {[%clk 0:01:24]}  d4 {[%clk 0:01:39]} 23. Be6+ {[%clk 0:01:09]}  Kg7 {[%clk 0:01:37]} 24. Bxc4 {[%clk 0:01:02]}  Ne5 {[%clk 0:01:37]} 25. Bb5 {[%clk 0:00:54]}  a6 {[%clk 0:01:33]} 26. Be2 {[%clk 0:00:51]}  d3 {[%clk 0:01:32]} 27. Bh5 {[%clk 0:00:49]}  d2 {[%clk 0:01:23]} 28. Re3 {[%clk 0:00:45]}  Nc4 {[%clk 0:01:12]} 29. Rg3+ {[%clk 0:00:44]}  Kh6 {[%clk 0:00:38]} 30. Be2 {[%clk 0:00:28]}  Bxe4 {[%clk 0:00:36]} 31. Bxc4 {[%clk 0:00:11]}  d1=Q {[%clk 0:00:35]} 32. Rxd1 {[%clk 0:00:11]}  Rxd1+ {[%clk 0:00:36]} 33. Kf2 {[%clk 0:00:09]}  b5 {[%clk 0:00:33]} 34. Be2 {[%clk 0:00:08]}  Rb1 {[%clk 0:00:29]} 35. b3 {[%clk 0:00:06]}  Rb2 {[%clk 0:00:28]} 36. Ke3 {[%clk 0:00:06]}  Bg6 {[%clk 0:00:25]} 37. h4 {[%clk 0:00:06]}  Rxa2 {[%clk 0:00:22]} 38. h5 {[%clk 0:00:06]}  Bf7 {[%clk 0:00:21]} 39. Rf3 {[%clk 0:00:03]}  Kg5 {[%clk 0:00:17]} 40. Rg3+ {[%clk 0:00:02]}  Kh6 {[%clk 0:00:18]} 41. Rf3 {[%clk 0:00:03]}  Bxh5 {[%clk 0:00:16]} 42. Rh3 {[%clk 0:00:03]}  Rxe2+ {[%clk 0:00:15]} 43. Kd3 {[%clk 0:00:03]}  Re5 {[%clk 0:00:16]} 44. g4 {[%clk 0:00:03]}  Kg6 {[%clk 0:00:15]} 45. gxh5+ {[%clk 0:00:03]}  Rxh5 {[%clk 0:00:16]} 46. Rg3+ {[%clk 0:00:03]}  Rg5 {[%clk 0:00:17]} 47. Re3 {[%clk 0:00:04]}  Re5 {[%clk 0:00:17]} 48. Rg3+ {[%clk 0:00:03]}  Kf7 {[%clk 0:00:17]} 49. Kd4 {[%clk 0:00:03]}  h5 {[%clk 0:00:16]} 50. b4 {[%clk 0:00:04]}  Rg5 {[%clk 0:00:15]} 51. Rh3 {[%clk 0:00:04]}  Kg6 {[%clk 0:00:15]} 52. Rh1 {[%clk 0:00:03]}  Rg4+ {[%clk 0:00:15]} 53. Kc5 {[%clk 0:00:04]}  Rc4+ {[%clk 0:00:15]} 54. Kb6 {[%clk 0:00:03]}  Rxb4 {[%clk 0:00:16]} 55. Kxa6 {[%clk 0:00:04]}  h4 {[%clk 0:00:15]} 56. Ka5 {[%clk 0:00:04]}  Rg4 {[%clk 0:00:15]} 57. Kxb5 {[%clk 0:00:04]}  Rd4 {[%clk 0:00:13]} 58. Kc5 {[%clk 0:00:04]}  Re4 {[%clk 0:00:13]} 59. Kd5 {[%clk 0:00:04]}  f5 {[%clk 0:00:13]} 60. Rg1+ {[%clk 0:00:04]}  Kh5 {[%clk 0:00:14]} 61. Rg8 {[%clk 0:00:04]}  h3 {[%clk 0:00:14]} 62. Rg7 {[%clk 0:00:04]}  Kh4 {[%clk 0:00:13]} 63. Rg8 {[%clk 0:00:04]}  h2 {[%clk 0:00:13]} 64. Rh8+ {[%clk 0:00:03]}  Kg3 {[%clk 0:00:13]} 65. Rg8+ {[%clk 0:00:04]}  Rg4 {[%clk 0:00:13]} 66. Rh8 {[%clk 0:00:04]}  Rh4 {[%clk 0:00:14]} 67. Rg8+ {[%clk 0:00:04]}  Kf4 {[%clk 0:00:13]} 68. Rg1 {[%clk 0:00:00]}  hxg1=Q {[%clk 0:00:12]} 0-1


[Site "https://www.chess.com"]

[Event "Titled Tuesday Blitz November 07 Early 2023"]
[White "ExchangeAB"]
[Black "Lymar, Vladislav"]
[BlackFideId "14162180"]
[WhiteElo "2446"]
[BlackElo "2538"]
[Result "0-1"]
[Round "11"]
[TimeControl "180+1"]
[Date "2023.11.07"]
[WhiteClock "0:01:15"]
[BlackClock "0:00:06"]
[Board "77"]

1. Nf3 {[%clk 0:03:00]}  d6 {[%clk 0:02:57]} 2. e3 {[%clk 0:03:00]}  e5 {[%clk 0:02:57]} 3. d4 {[%clk 0:03:00]}  Nd7 {[%clk 0:02:53]} 4. c4 {[%clk 0:02:59]}  Ngf6 {[%clk 0:02:52]} 5. Nc3 {[%clk 0:02:59]}  Be7 {[%clk 0:02:52]} 6. dxe5 {[%clk 0:02:54]}  dxe5 {[%clk 0:02:52]} 7. Bd3 {[%clk 0:02:51]}  Nc5 {[%clk 0:02:22]} 8. Bc2 {[%clk 0:02:51]}  Qxd1+ {[%clk 0:02:17]} 9. Nxd1 {[%clk 0:02:52]}  e4 {[%clk 0:01:45]} 10. Nd4 {[%clk 0:02:50]}  O-O {[%clk 0:01:38]} 11. h3 {[%clk 0:02:45]}  a5 {[%clk 0:01:25]} 12. O-O {[%clk 0:02:44]}  a4 {[%clk 0:01:25]} 13. Nc3 {[%clk 0:02:44]}  Bd6 {[%clk 0:01:09]} 14. Rb1 {[%clk 0:02:43]}  Be5 {[%clk 0:01:07]} 15. b4 {[%clk 0:02:42]}  axb3 {[%clk 0:01:07]} 16. axb3 {[%clk 0:02:43]}  Rd8 {[%clk 0:01:05]} 17. b4 {[%clk 0:02:41]}  Ne6 {[%clk 0:00:54]} 18. Nxe6 {[%clk 0:02:35]}  Bxe6 {[%clk 0:00:52]} 19. Nxe4 {[%clk 0:02:29]}  Bxc4 {[%clk 0:00:32]} 20. Nxf6+ {[%clk 0:02:29]}  Bxf6 {[%clk 0:00:32]} 21. Rd1 {[%clk 0:02:23]}  Rxd1+ {[%clk 0:00:31]} 22. Bxd1 {[%clk 0:02:23]}  Ba2 {[%clk 0:00:31]} 23. Rb2 {[%clk 0:02:19]}  Bxb2 {[%clk 0:00:31]} 24. Bxb2 {[%clk 0:02:20]}  Bc4 {[%clk 0:00:31]} 25. Bf3 {[%clk 0:02:20]}  c6 {[%clk 0:00:31]} 26. Bd4 {[%clk 0:02:19]}  Ra4 {[%clk 0:00:29]} 27. Bc5 {[%clk 0:02:19]}  f6 {[%clk 0:00:29]} 28. g4 {[%clk 0:02:16]}  Bd5 {[%clk 0:00:27]} 29. e4 {[%clk 0:02:09]}  Bc4 {[%clk 0:00:23]} 30. Kg2 {[%clk 0:02:09]}  Kf7 {[%clk 0:00:21]} 31. h4 {[%clk 0:02:05]}  b6 {[%clk 0:00:22]} 32. Bd6 {[%clk 0:02:00]}  Ra3 {[%clk 0:00:16]} 33. e5 {[%clk 0:01:53]}  Bf1+ {[%clk 0:00:14]} 34. Kxf1 {[%clk 0:01:47]}  Rxf3 {[%clk 0:00:14]} 35. exf6 {[%clk 0:01:44]}  gxf6 {[%clk 0:00:13]} 36. Bc7 {[%clk 0:01:44]}  c5 {[%clk 0:00:10]} 37. bxc5 {[%clk 0:01:43]}  bxc5 {[%clk 0:00:10]} 38. Ke2 {[%clk 0:01:43]}  Rh3 {[%clk 0:00:10]} 39. h5 {[%clk 0:01:43]}  Ke6 {[%clk 0:00:09]} 40. Bg3 {[%clk 0:01:36]}  f5 {[%clk 0:00:09]} 41. Kf3 {[%clk 0:01:26]}  Rh1 {[%clk 0:00:07]} 42. Kf4 {[%clk 0:01:16]}  fxg4 {[%clk 0:00:06]} 43. Kxg4 {[%clk 0:01:17]}  c4 {[%clk 0:00:06]} 44. Kg5 {[%clk 0:01:17]}  c3 {[%clk 0:00:06]} 45. Bf4 {[%clk 0:01:17]}  Kf7 {[%clk 0:00:05]} 46. Kh6 {[%clk 0:01:17]}  Kg8 {[%clk 0:00:04]} 47. Be3 {[%clk 0:01:16]}  c2 {[%clk 0:00:05]} 48. f4 {[%clk 0:01:17]}  c1=Q {[%clk 0:00:05]} 49. Bxc1 {[%clk 0:01:17]}  Rxc1 {[%clk 0:00:06]} 50. f5 {[%clk 0:01:18]}  Rc6+ {[%clk 0:00:06]} 51. Kg5 {[%clk 0:01:18]}  Kf7 {[%clk 0:00:07]} 52. h6 {[%clk 0:01:15]}  Rd6 {[%clk 0:00:06]} 0-1


[Site "https://www.chess.com"]

[Event "Titled Tuesday Blitz November 07 Early 2023"]
[White "Alinasab, Mobina"]
[Black "Todorovic, Bojan"]
[WhiteFideId "12528897"]
[BlackFideId "917087"]
[WhiteElo "2531"]
[BlackElo "2430"]
[Result "0-1"]
[Round "11"]
[TimeControl "180+1"]
[Date "2023.11.07"]
[WhiteClock "0:00:00"]
[BlackClock "0:01:45"]
[Board "79"]

1. e4 {[%clk 0:03:00]}  g6 {[%clk 0:02:59]} 2. d4 {[%clk 0:02:59]}  Bg7 {[%clk 0:02:58]} 3. Nc3 {[%clk 0:03:00]}  d6 {[%clk 0:02:58]} 4. f4 {[%clk 0:02:59]}  a6 {[%clk 0:02:58]} 5. Nf3 {[%clk 0:03:00]}  Nd7 {[%clk 0:02:57]} 6. e5 {[%clk 0:03:00]}  b5 {[%clk 0:02:55]} 7. e6 {[%clk 0:02:59]}  fxe6 {[%clk 0:02:54]} 8. Ng5 {[%clk 0:03:00]}  Nf8 {[%clk 0:02:54]} 9. Qf3 {[%clk 0:02:47]}  Rb8 {[%clk 0:02:53]} 10. Be3 {[%clk 0:02:46]}  Nf6 {[%clk 0:02:47]} 11. O-O-O {[%clk 0:02:45]}  Bb7 {[%clk 0:02:40]} 12. Qh3 {[%clk 0:02:41]}  b4 {[%clk 0:02:38]} 13. Ne2 {[%clk 0:01:03]}  Bd5 {[%clk 0:02:22]} 14. Kb1 {[%clk 0:00:30]}  Qd7 {[%clk 0:02:04]} 15. Nc1 {[%clk 0:00:29]}  Qc6 {[%clk 0:01:59]} 16. Rg1 {[%clk 0:00:14]}  Ne4 {[%clk 0:01:48]} 17. Nxe4 {[%clk 0:00:13]}  Bxe4 {[%clk 0:01:48]} 18. g4 {[%clk 0:00:00]}  Qxc2+ {[%clk 0:01:45]} 0-1


[Site "https://www.chess.com"]